bitfinex/quotes_ETHUSD_20250925
["timestamp","ask_amount","ask_price","bid_price","bid_amount"]
[1758833776047,7.77501979,3896.7,3896.6,0.002]
[1758833776430,6.40747402,3896.7,3896.6,0.002]
[1758833776660,8.00716598,3896.7,3896.6,0.002]
[1758833777159,2.56647161,3896.4,3896.3,0.002]
[1758833777455,7.94183842,3896.4,3896.3,0.002]
[1758833777755,7.73967161,3896.4,3896.3,0.002]
[1758833777961,9.32417875,3896.4,3896.3,0.002]
[1758833778142,10.23890126,3896.4,3896.3,0.002]
[1758833778456,13.23890126,3896.4,3896.3,0.002]
[1758833778662,12.32417875,3896.4,3896.3,0.002]
[1758833778973,13.69612479,3896.4,3896.3,0.002]
[1758833779271,12.32417875,3896.4,3896.3,0.002]
[1758833779763,12.87249592,3896.4,3896.3,0.002]
[1758833782065,13.66449592,3896.4,3896.3,0.002]
[1758833782438,15.03644196,3896.4,3896.3,0.002]
[1758833783361,9.20449592,3896.4,3896.3,0.002]
[1758833783571,22.99249592,3896.4,3896.3,0.002]
[1758833784157,23.90339909,3896.4,3896.3,0.002]
[1758833784354,22.99449592,3896.4,3896.3,0.002]
[1758833786261,17.02829592,3896.4,3896.3,0.002]
[1758833786467,21.48829592,3896.4,3896.3,0.002]
[1758833787379,18.92182431,3896.4,3896.3,0.002]
[1758833787575,14.33731717,3896.4,3896.3,0.002]
[1758833787777,16.35547161,3896.4,3896.3,0.002]
[1758833788080,16.789,3896.4,3896.3,0.002]
[1758833789173,14.65,3896.4,3896.3,0.002]
[1758833789488,17.21647161,3896.4,3896.3,0.002]
[1758833789846,14.65,3896.4,3896.3,0.002]
[1758833790078,14.65,3896.4,3896.3,0.4733]
[1758833790282,14.65,3896.4,3896.3,0.002]
[1758833791481,19.32054081,3896.4,3896.3,0.002]
[1758833791844,19.07954081,3896.4,3896.3,0.002]
[1758833792470,14.61954081,3896.4,3896.3,0.002]
[1758833792669,19.07954081,3896.4,3896.3,0.002]
[1758833793077,19.86703505,3896.4,3896.3,0.002]
[1758833793276,20.30873505,3896.4,3896.3,0.002]
[1758833793593,19.62603505,3896.4,3896.3,0.002]
[1758833794686,19.86703505,3896.4,3896.3,0.002]
[1758833794852,20.30873505,3896.4,3896.3,0.002]
[1758833795048,19.86703505,3896.4,3896.3,0.002]
[1758833795251,19.62603505,3896.4,3896.3,0.002]
[1758833795761,12.59956344,3896.4,3896.3,0.002]
[1758833795963,17.05856344,3896.4,3896.3,0.002]
[1758833797291,17.7417179,3896.4,3896.3,0.002]
[1758833797864,20.30818951,3896.4,3896.3,0.002]
[1758833798381,19.62503505,3896.4,3896.3,0.002]
[1758833798585,21.21863822,3896.4,3896.3,0.002]
[1758833798786,20.30773505,3896.4,3896.3,0.002]
[1758833800255,21.67968109,3896.4,3896.3,0.002]
[1758833800671,21.23798109,3896.4,3896.3,0.002]
[1758833800874,16.56644028,3896.4,3896.3,0.002]
[1758833801074,17.76096585,3896.4,3896.3,0.002]
[1758833801386,19.13291189,3896.4,3896.3,0.002]
[1758833801683,16.56644028,3896.4,3896.3,0.002]
[1758833801890,16.56644028,3896.4,3896.3,0.4733]
[1758833802063,16.56644028,3896.4,3896.3,0.7115]
[1758833802389,7.73649424,3896.4,3896.3,3.27803748]
[1758833802552,13.11144668,3896.4,3896.3,3.27803748]
[1758833802752,12.88198991,3896.4,3896.3,3.27803748]
[1758833802952,1.23498991,3896.4,3896.3,3.86450526]
[1758833803192,0.001,3896.6,3896.5,2.56640574]
[1758833803362,0.001,3896.6,3896.5,2.69440574]
[1758833803562,0.001,3896.6,3896.5,8.73990574]
[1758833803951,0.001,3897.4,3897.0,4.11007646]
[1758833804192,0.001,3897.4,3897.0,8.97808411]
[1758833804355,0.001,3897.4,3897.0,13.60758411]
[1758833805889,0.68849567,3898.6,3897.4,4.1098131]
[1758833805890,1e-08,3897.5,3897.4,4.1098131]
[1758833806068,1e-08,3897.5,3897.4,9.27447123]
[1758833806264,1e-08,3897.5,3897.4,8.5423131]
[1758833806491,1e-08,3897.5,3897.4,10.35298085]
[1758833809886,1e-08,3897.5,3897.4,9.75798085]
[1758833810082,1e-08,3897.5,3897.4,16.34998085]
[1758833812977,1e-08,3897.5,3897.4,8.21398085]
[1758833813180,1e-08,3897.5,3897.4,14.80598085]
[1758833814117,1e-08,3897.5,3897.4,8.21398085]
[1758833814291,1e-08,3897.5,3897.4,2.5658131]
[1758833814495,1e-08,3897.5,3897.4,7.0178131]
[1758833814714,1e-08,3897.5,3897.4,7.8098131]
[1758833815013,1e-08,3897.5,3897.4,10.8098131]
[1758833815416,1e-08,3897.5,3897.4,10.0178131]
[1758833815605,1e-08,3897.5,3897.4,11.48998421]
[1758833816890,0.67630001,3897.5,3896.4,2.138]
[1758833817091,0.6763,3897.4,3897.0,2.56605777]
[1758833817308,1e-08,3897.5,3897.1,0.0256601]
[1758833817510,0.2449,3897.4,3897.2,2.56594478]
[1758833817920,0.2449,3897.3,3897.0,2.56807646]
[1758833818237,0.2449,3897.2,3897.0,0.002]
[1758833818392,0.6763,3897.2,3897.0,0.002]
[1758833818591,0.2449,3897.1,3897.0,0.002]
[1758833819088,0.6763,3897.1,3897.0,4.453]
[1758833819504,0.6763,3897.1,3897.0,7.01907646]
[1758833819823,0.6763,3897.1,3897.0,4.453]
[1758833820213,0.6763,3897.1,3897.0,7.01907646]
[1758833820413,0.6763,3897.1,3897.0,0.002]
[1758833820937,1.00052138,3897.1,3897.0,0.002]
[1758833821225,0.2449,3897.1,3897.0,0.002]
[1758833821791,0.6763,3897.1,3897.0,0.002]
[1758833822358,0.2449,3897.1,3897.0,0.002]
[1758833822923,0.6763,3897.1,3897.0,0.002]
[1758833823647,1e-08,3897.5,3897.0,0.002]
[1758833823814,0.47270001,3897.5,3897.0,2.56803338]
[1758833824018,0.70720001,3897.5,3897.1,2.56600978]
[1758833824248,0.128,3897.4,3897.0,2.5937305]
[1758833824453,0.3625,3897.4,3897.0,0.02766076]
[1758833824648,0.6007,3897.4,3897.0,0.002]
[1758833824815,0.7072,3897.3,3897.0,0.002]
[1758833825218,2.56601062,3897.1,3897.0,0.002]
[1758833825419,0.32730752,3897.2,3897.0,0.002]
[1758833825621,0.7072,3897.1,3897.0,0.002]
[1758833826819,3.27321062,3897.1,3897.0,0.002]
[1758833827356,7.5070955,3897.1,3897.0,0.002]
[1758833827537,9.29771968,3897.1,3897.0,0.002]
[1758833828545,9.52906453,3897.1,3897.0,0.002]
[1758833829355,9.40311209,3897.1,3897.0,0.002]
[1758833830430,10.78004115,3897.1,3897.0,0.002]
[1758833830624,2.56627402,3896.7,3896.6,0.002]
[1758833830854,13.31931507,3896.7,3896.6,0.002]
[1758833831047,14.02651507,3896.7,3896.6,0.002]
[1758833831247,14.0263384,3896.7,3896.6,0.002]
[1758833831462,12.654198,3896.7,3896.6,0.002]
[1758833831626,3.35847161,3896.4,3896.3,1e-08]
[1758833831833,11.26079867,3896.4,3896.3,1e-08]
[1758833832160,3.35860335,3896.2,3896.1,1e-08]
[1758833832405,12.72621088,3896.2,3896.1,1e-08]
[1758833832684,12.06208064,3896.2,3896.1,1e-08]
[1758833833037,7.61308064,3896.2,3896.1,1e-08]
[1758833833258,16.80994104,3896.2,3896.1,1e-08]
[1758833834344,15.43974084,3896.2,3896.1,1e-08]
[1758833835450,15.43974084,3896.2,3896.1,0.00200001]
[1758833835650,3.35873511,3896.0,3895.9,1e-08]
[1758833835854,7.81851417,3896.0,3895.9,1e-08]
[1758833836047,3.35899866,3895.6,3895.5,1e-08]
[1758833836241,7.80799866,3895.6,3895.5,1e-08]
[1758833836546,9.97486811,3895.6,3895.5,1e-08]
[1758833836770,10.37750998,3895.6,3895.5,1e-08]
[1758833836947,13.37750998,3895.6,3895.5,1e-08]
[1758833837141,15.68236426,3895.6,3895.5,1e-08]
[1758833837378,6.35926227,3895.2,3895.1,1e-08]
[1758833837581,13.85848481,3895.2,3895.1,1e-08]
[1758833837784,14.20173956,3895.2,3895.1,1e-08]
[1758833837982,7.61373956,3895.2,3895.1,1e-08]
[1758833838144,15.35650994,3895.2,3895.1,1e-08]
[1758833838349,13.21750994,3895.2,3895.1,1e-08]
[1758833838545,15.35650994,3895.2,3895.1,1e-08]
[1758833839267,16.03956686,3895.2,3895.1,1e-08]
[1758833839542,15.35650994,3895.2,3895.1,1e-08]
[1758833839769,16.03956683,3895.2,3895.1,1e-08]
[1758833840180,15.35650994,3895.2,3895.1,1e-08]
[1758833840670,15.56685222,3895.2,3895.1,1e-08]
[1758833840873,15.33520994,3895.2,3895.1,1e-08]
[1758833841092,3.35952593,3894.8,3894.7,1e-08]
[1758833841383,12.26030036,3894.8,3894.7,1e-08]
[1758833841589,15.54188203,3894.8,3894.7,1e-08]
[1758833841752,14.63150036,3894.8,3894.7,1e-08]
[1758833841966,15.99328203,3894.8,3894.7,1e-08]
[1758833842275,15.08290036,3894.8,3894.7,1e-08]
[1758833842452,15.99325557,3894.8,3894.7,1e-08]
[1758833843077,8.49490036,3894.8,3894.7,1e-08]
[1758833843300,7.02030036,3894.8,3894.7,1e-08]
[1758833843620,13.10452104,3894.8,3894.7,0.46160001]
[1758833843795,13.10452104,3894.8,3894.7,1e-08]
[1758833844298,13.38478407,3894.8,3894.7,1e-08]
[1758833844645,12.70180322,3894.8,3894.7,1e-08]
[1758833844849,15.07106776,3894.8,3894.7,1e-08]
[1758833845092,14.38808691,3894.8,3894.7,1e-08]
[1758833845455,15.98129433,3894.8,3894.7,1e-08]
[1758833845652,16.77329433,3894.8,3894.7,1e-08]
[1758833846164,15.86268691,3894.8,3894.7,1e-08]
[1758833846489,15.41128691,3894.8,3894.7,1e-08]
[1758833847294,15.18008691,3894.8,3894.7,1e-08]
[1758833847996,8.59308691,3894.8,3894.7,1e-08]
[1758833848191,15.18108691,3894.8,3894.7,1e-08]
[1758833848407,22.37108691,3894.8,3894.7,1e-08]
[1758833849226,23.73792072,3894.8,3894.7,1e-08]
[1758833849430,16.35792072,3894.8,3894.7,1e-08]
[1758833849592,14.21765267,3894.8,3894.7,0.69980001]
[1758833849923,17.75280322,3894.8,3894.7,0.69980001]
[1758833850112,18.43748988,3894.8,3894.7,0.46160001]
[1758833850312,17.75280322,3894.8,3894.7,1e-08]
[1758833850490,20.09010991,3894.8,3894.7,1e-08]
[1758833850697,21.68555936,3894.8,3894.7,1e-08]
[1758833850916,20.09010991,3894.8,3894.7,1e-08]
[1758833851319,21.68814372,3894.8,3894.7,1e-08]
[1758833851730,21.45694372,3894.8,3894.7,1e-08]
[1758833851924,18.45694372,3894.8,3894.7,1e-08]
[1758833852395,18.46207095,3894.8,3894.7,1e-08]
[1758833852711,17.09010991,3894.8,3894.7,1e-08]
[1758833852911,18.46190026,3894.8,3894.7,1e-08]
[1758833853410,17.09010991,3894.8,3894.7,1e-08]
[1758833853609,2.69559185,3894.7,3894.6,0.002]
[1758833853816,5.69218074,3894.7,3894.6,0.002]
[1758833854121,10.06480517,3894.7,3894.6,0.002]
[1758833854448,8.69218074,3894.7,3894.6,0.002]
[1758833855896,2.56778964,3894.4,3894.3,0.002]
[1758833856128,17.75106693,3894.4,3894.3,0.002]
[1758833856342,17.75106693,3894.4,3894.3,0.4636]
[1758833856804,17.75106693,3894.4,3894.3,0.002]
[1758833856805,20.0278759,3894.4,3894.3,0.002]
[1758833858402,20.0278759,3894.4,3894.1,1e-08]
[1758833858403,2.56792152,3894.2,3894.1,1e-08]
[1758833858625,2.56792152,3894.2,3892.9,0.002]
[1758833858626,3.0,3893.1,3892.9,0.002]
[1758833858824,2.56858111,3893.2,3892.9,0.002]
[1758833858825,13.81135325,3893.0,3892.9,0.002]
[1758833859147,15.81220253,3893.0,3892.9,0.002]
[1758833859301,15.46817593,3893.0,3892.9,0.002]
[1758833859722,7.32141304,3893.0,3892.9,0.002]
[1758833859913,15.97272083,3893.0,3892.9,0.002]
[1758833860110,13.67521304,3893.0,3892.9,0.002]
[1758833860507,13.90641304,3893.0,3892.9,0.002]
[1758833860704,14.35781304,3893.0,3892.9,0.002]
[1758833861034,16.99592083,3893.0,3892.9,0.002]
[1758833861234,15.14981304,3893.0,3892.9,0.002]
[1758833864041,15.15081304,3893.0,3892.9,0.002]
[1758833864659,2.56924104,3892.2,3891.9,0.4616]
[1758833864965,9.70251833,3892.2,3891.9,0.4616]
[1758833865163,15.94894312,3892.2,3891.9,0.4616]
[1758833865371,14.11325482,3892.2,3891.6,0.4616]
[1758833865848,14.11325482,3892.2,3892.1,0.002]
[1758833866020,2.56957113,3891.7,3891.6,0.4616]
[1758833866238,4.99327729,3891.7,3891.6,0.4616]
[1758833866436,7.56284842,3891.7,3891.6,0.4616]
[1758833866982,7.56284842,3891.7,3891.1,0.02]
[1758833866983,7.99327729,3891.7,3891.1,0.02]
[1758833867289,7.40243877,3891.2,3891.1,0.02]
[1758833867481,6.1171786,3891.2,3891.1,0.02]
[1758833867642,12.7041786,3891.2,3891.1,0.02]
[1758833868339,14.53543456,3891.2,3891.1,0.02]
[1758833868534,2.57027803,3890.7,3890.4,0.7111]
[1758833868736,8.93601988,3890.6,3890.4,0.7111]
[1758833868935,0.54727729,3890.5,3890.4,0.2422]
[1758833869181,0.54727729,3890.5,3890.4,0.002]
[1758833869682,5.90833147,3890.5,3890.4,0.4709]
[1758833869885,5.90833147,3890.5,3890.4,0.7111]
[1758833870101,4.99327729,3890.5,3890.4,0.7111]
[1758833870403,5.90871932,3890.5,3890.4,0.7111]
[1758833871157,0.54727729,3890.5,3890.4,3.28152977]
[1758833871480,1.23326771,3890.5,3890.4,3.28152977]
[1758833871662,0.54727729,3890.5,3890.4,3.73968275]
[1758833871861,0.54727729,3890.5,3890.4,0.7111]
[1758833872281,0.54727729,3890.5,3890.4,3.28152977]
[1758833874262,4.446,3890.9,3890.8,2.57016551]
[1758833874464,5.25999042,3891.1,3891.0,2.57003341]
[1758833874807,5.80866469,3891.1,3891.0,3.27913341]
[1758833875164,5.12267427,3891.1,3891.0,3.27913341]
[1758833875397,0.67667427,3891.1,3891.0,3.27913341]
[1758833875598,5.12167427,3891.1,3891.0,3.27913341]
[1758833875799,0.67667427,3891.1,3891.0,3.27913341]
[1758833876303,0.54867427,3891.1,3891.0,3.27913341]
[1758833876787,0.54867427,3891.1,3891.0,4.03126298]
[1758833876993,0.128,3891.5,3891.4,2.56976923]
[1758833877290,0.81399042,3891.8,3891.7,2.56957113]
[1758833877523,1.36263407,3891.8,3891.7,3.27867113]
[1758833877819,0.67664365,3891.8,3891.7,3.27867113]
[1758833878784,0.67664365,3891.8,3891.7,0.7091]
[1758833878983,0.67664365,3891.8,3891.7,3.27867113]
[1758833879414,0.67664365,3891.8,3891.7,3.03847113]
[1758833879613,0.67664365,3891.8,3891.7,2.56957113]
[1758833879981,0.67664365,3891.8,3891.5,2.56963952]
[1758833880181,0.54864365,3891.7,3891.6,2.56963716]
[1758833882829,0.54864365,3891.7,3891.6,3.03853716]
[1758833883031,0.54864365,3891.7,3891.6,3.27873716]
[1758833885258,0.54864365,3891.7,3891.6,3.03853716]
[1758833887117,0.54864365,3891.7,3891.4,2.56971582]
[1758833887118,1.23084365,3891.7,3891.4,2.56972732]
[1758833887455,0.81718192,3891.5,3891.4,3.033905]
[1758833887627,1.36582557,3891.5,3891.4,2.569705]
[1758833888227,0.67664365,3891.5,3891.4,2.569705]
[1758833890143,0.67664365,3891.5,3891.4,3.033905]
[1758833890512,0.54864365,3891.5,3891.4,3.033905]
[1758833891825,0.54864365,3891.5,3891.4,2.569705]
[1758833893074,1.36713628,3891.5,3891.4,2.569705]
[1758833893278,0.92204365,3891.5,3891.4,2.569705]
[1758833894066,2.56983527,3891.3,3891.2,0.002]
[1758833894245,3.54864365,3891.3,3891.2,0.002]
[1758833894450,7.99064365,3891.3,3891.2,0.002]
[1758833894986,5.91019235,3891.3,3891.2,0.002]
[1758833895149,1.46819235,3891.3,3891.2,2.57190131]
[1758833895348,1.23833308,3891.3,3891.2,3.03610131]
[1758833896311,0.54864365,3891.3,3891.2,3.26330131]
[1758833896686,1.23833308,3891.3,3891.2,3.26330131]
[1758833897062,1.23833308,3891.3,3891.2,3.03610131]
[1758833897389,1.23833308,3891.3,3891.2,0.002]
[1758833900398,0.54864365,3891.3,3891.2,0.002]
[1758833900704,0.54864365,3891.3,3891.2,3.01640131]
[1758833900895,1.2394906,3891.3,3891.2,3.01640131]
[1758833901273,0.54864365,3891.3,3891.2,3.25660131]
[1758833901574,0.69107075,3891.8,3891.7,2.56957113]
[1758833901783,0.55293923,3891.8,3891.7,2.56957113]
[1758833901982,0.55293923,3891.8,3891.7,3.01407113]
[1758833902918,0.55293923,3891.8,3891.7,3.27996684]
[1758833903125,0.001,3892.1,3892.0,2.56937307]
[1758833903284,0.55389484,3892.1,3892.0,7.00937307]
[1758833903602,0.001,3892.5,3892.4,2.56910903]
[1758833903767,0.001,3892.5,3892.4,9.23780903]
[1758833903966,0.001,3892.5,3892.4,9.36580903]
[1758833906299,0.001,3892.5,3892.4,7.82180903]
[1758833907284,0.001,3892.5,3892.4,3.14160903]
[1758833907478,0.2294,3892.5,3892.4,7.13610903]
[1758833907687,0.2294,3892.5,3892.4,4.439]
[1758833908031,0.2294,3892.5,3892.2,2.5691765]
[1758833908193,0.2284,3892.4,3892.3,2.56914806]
[1758833908521,0.2284,3892.4,3892.0,2.56935913]
[1758833908690,0.8309,3892.3,3891.9,4.438]
[1758833908888,0.8309,3892.3,3892.1,2.5692512]
[1758833909229,0.8309,3892.3,3892.2,2.56924104]
[1758833909230,0.128,3892.3,3892.2,2.56924104]
[1758833909398,0.001,3892.5,3892.3,2.56913012]
[1758833909718,0.7029,3892.4,3892.0,0.128]
[1758833909903,0.7029,3892.3,3892.0,2.69736096]
[1758833910092,0.2284,3892.2,3892.1,2.56930705]
[1758833910617,0.2284,3892.2,3892.0,2.69735459]
[1758833910923,0.2284,3892.1,3892.0,2.5693526]
[1758833912620,0.128,3892.3,3892.1,2.5692844]
[1758833912821,0.128,3892.3,3892.2,2.56924104]
[1758833913119,0.2294,3892.5,3892.4,2.56910903]
[1758833913120,0.001,3892.5,3892.4,2.56910903]
[1758833913319,0.001,3892.5,3892.1,2.56926016]
[1758833913523,0.7029,3892.4,3891.8,4.437]
[1758833913834,0.3564,3892.3,3892.0,2.56935485]
[1758833914126,0.2284,3892.2,3892.0,2.56935485]
[1758833914491,0.2284,3892.1,3891.8,7.00648935]
[1758833914798,0.001,3892.5,3892.4,2.56910903]
[1758833915435,0.001,3892.5,3892.2,2.56917538]
[1758833915637,0.78072832,3892.5,3892.0,2.69736084]
[1758833915841,0.2284,3892.4,3892.2,2.56923625]
[1758833916044,0.2284,3892.4,3892.3,2.56917503]
[1758833916410,0.2284,3892.4,3892.2,2.56921667]
[1758833916617,0.2284,3892.3,3891.9,4.437]
[1758833916821,0.128,3892.4,3892.3,2.56917503]
[1758833918251,0.128,3892.4,3892.2,2.56923957]
[1758833918405,0.128,3892.4,3892.0,0.4445]
[1758833918612,0.128,3892.4,3892.3,2.56917503]
[1758833919640,0.128,3892.4,3892.2,2.56918185]
[1758833920014,0.128,3892.4,3892.0,2.56934001]
[1758833920015,0.128,3892.4,3892.3,2.56917503]
[1758833920524,0.001,3892.5,3892.4,4.11310903]
[1758833920914,0.7039,3892.5,3891.9,1.544]
[1758833921251,0.7799037,3892.4,3891.3,4.8805]
[1758833921418,0.5515037,3892.4,3892.2,2.569199]
[1758833921611,0.5515037,3892.4,3892.3,2.56917503]
[1758833922014,0.001,3892.5,3892.4,2.56910903]
[1758833922224,0.001,3892.5,3892.3,2.56916273]
[1758833922426,1.0270037,3892.5,3892.1,2.56930514]
[1758833922637,0.7029,3892.4,3892.1,2.56930514]
[1758833922843,0.001,3892.5,3891.8,1.544]
[1758833923052,0.5525037,3892.5,3891.8,2.5865]
[1758833923232,0.001,3892.5,3892.4,2.56910903]
[1758833923432,0.2294,3892.5,3891.8,2.5865]
[1758833923633,0.5525037,3892.5,3892.4,2.56910903]
[1758833923849,0.2294,3892.5,3892.3,2.56915553]
[1758833924153,0.5315037,3892.4,3892.3,2.56915553]
[1758833924338,1.2354037,3892.4,3892.0,0.002]
[1758833924536,0.7029,3892.3,3892.0,0.002]
[1758833924738,0.7029,3892.3,3892.1,2.56930432]
[1758833924962,0.2284,3892.2,3892.1,2.56930432]
[1758833925372,0.2284,3892.2,3892.0,2.57135303]
[1758833926081,0.2284,3892.2,3892.1,2.56930705]
[1758833927436,0.2284,3892.2,3892.0,0.002]
[1758833927633,0.2284,3892.1,3892.0,0.002]
[1758833928041,0.2284,3892.1,3892.0,2.57137307]
[1758833928897,0.001,3892.4,3892.2,2.56923673]
[1758833929241,0.236,3892.4,3892.2,2.56923673]
[1758833929785,0.001,3892.4,3892.3,2.56917503]
[1758833930880,5.56930705,3892.1,3892.0,0.002]
[1758833931076,14.52052208,3892.1,3892.0,0.002]
[1758833931287,10.72405815,3892.1,3892.0,0.002]
[1758833931442,14.52052208,3892.1,3892.0,0.002]
[1758833931950,15.9027652,3892.1,3892.0,0.002]
[1758833932352,14.52052208,3892.1,3892.0,0.002]
[1758833932549,15.90208693,3892.1,3892.0,0.002]
[1758833932938,14.52052208,3892.1,3892.0,0.002]
[1758833933169,15.90207444,3892.1,3892.0,0.002]
[1758833933739,0.92084832,3892.2,3892.0,0.002]
[1758833933944,0.69063681,3892.1,3892.0,0.002]
[1758833934145,7.92402753,3892.3,3892.0,0.002]
[1758833934345,0.69054245,3892.1,3892.0,0.002]
[1758833935157,5.35484832,3892.3,3892.0,2.57137307]
[1758833935362,0.69032207,3892.1,3892.0,0.002]
[1758833935585,0.69032207,3892.1,3892.0,2.57137307]
[1758833935783,0.69032207,3892.2,3892.1,2.56930705]
[1758833936084,0.69032207,3892.3,3892.2,2.56924104]
[1758833936297,0.55249359,3892.3,3892.2,2.56924104]
[1758833936655,0.55249359,3892.3,3892.2,3.82617245]
[1758833938484,0.001,3892.4,3892.3,2.56917503]
[1758833938684,0.55380049,3892.4,3892.3,3.26507503]
[1758833939684,0.001,3892.4,3892.3,5.62676678]
[1758833939887,0.001,3892.4,3892.3,10.0561868]
[1758833940386,1e-08,3892.8,3892.7,4.11291103]
[1758833940563,1e-08,3892.8,3892.7,8.54691103]
[1758833940769,1e-08,3892.8,3892.7,9.37081103]
[1758833941176,1e-08,3892.8,3892.7,4.93681103]
[1758833941378,1e-08,3892.8,3892.7,12.07284244]
[1758833949027,0.55166703,3893.6,3893.1,3.36064709]
[1758833949374,0.2457,3894.4,3893.8,2.56818532]
[1758833949375,1e-08,3893.9,3893.8,2.56818532]
[1758833949657,1e-08,3893.9,3893.8,7.00018532]
[1758833949866,1e-08,3893.9,3893.8,7.68008532]
[1758833950029,1e-08,3893.9,3893.8,9.0733203]
[1758833950228,1e-08,3893.9,3893.8,11.4093203]
[1758833951272,1e-08,3893.9,3893.8,14.4093203]
[1758833951578,1e-08,3893.9,3893.8,16.5483203]
[1758833952534,1e-08,3893.9,3893.8,16.3139203]
[1758833952865,1e-08,3893.9,3893.8,16.5483203]
[1758833953069,1e-08,3893.9,3893.8,15.8684203]
[1758833954537,1e-08,3893.9,3893.8,16.5483203]
[1758833957462,1e-08,3893.9,3893.8,15.8684203]
[1758833957665,1e-08,3893.9,3893.8,16.3139203]
[1758833957959,1e-08,3893.9,3893.8,16.5483203]
[1758833959166,1e-08,3893.9,3893.8,16.6763203]
[1758833960152,1e-08,3893.9,3893.8,16.6783203]
[1758833960563,0.00100001,3893.9,3893.8,14.11013498]
[1758833961447,1e-08,3896.0,3894.4,1.544]
[1758833961652,1e-08,3896.0,3895.9,7.23880099]
[1758833961949,0.2289,3897.3,3896.8,2.56620817]
[1758833962149,0.4687,3897.3,3896.8,7.12220817]
[1758833962351,0.4687,3897.3,3896.8,2.69420817]
[1758833962551,0.7176,3896.9,3896.8,7.14787025]
[1758833962870,0.7176,3896.9,3896.8,7.12220817]
[1758833963743,0.7176,3896.9,3896.8,2.56620817]
[1758833964675,0.7176,3896.9,3896.6,2.56633764]
[1758833964847,0.4687,3896.8,3896.5,0.128]
[1758833965052,0.6976,3896.8,3896.5,2.309]
[1758833965263,0.6976,3896.7,3896.6,2.56628341]
[1758833965449,0.6976,3896.7,3896.6,2.56633988]
[1758833965975,0.6976,3896.7,3896.5,2.309]
[1758833966277,0.6976,3896.6,3896.5,2.309]
[1758833966443,0.6976,3896.6,3896.2,6.99254536]
[1758833966645,0.6976,3896.5,3896.4,2.56641478]
[1758833966965,0.128,3896.7,3896.5,2.56640339]
[1758833967579,0.6976,3896.6,3896.5,2.56640339]
[1758833967742,0.4887,3896.9,3896.8,2.56620817]
[1758833968262,1.26926703,3896.9,3896.6,2.56628008]
[1758833968469,1.24926703,3896.8,3896.5,2.56635729]
[1758833968772,0.55166703,3896.7,3896.3,4.554]
[1758833968977,0.55166703,3896.7,3896.6,2.56633988]
[1758833969676,1.24926703,3896.7,3896.5,2.5663934]
[1758833969879,1.24926703,3896.6,3896.5,2.5663934]
[1758833970045,0.6976,3896.6,3896.3,6.99250336]
[1758833970244,0.2289,3896.5,3896.3,4.426]
[1758833970440,0.2289,3896.4,3896.3,4.426]
[1758833970753,0.6976,3896.4,3896.3,6.99253748]
[1758833970959,0.6976,3896.4,3896.3,4.426]
[1758833971967,1.38315953,3896.4,3896.2,2.56658992]
[1758833972192,1.24578026,3896.3,3896.2,2.56658992]
[1758833972387,1.24578026,3896.3,3896.0,0.128]
[1758833972664,1.24578026,3896.2,3895.9,4.425]
[1758833972867,0.2289,3896.1,3895.9,4.425]
[1758833973080,0.2289,3896.0,3895.9,6.99180099]
[1758833974196,0.3569,3896.3,3896.2,2.56660335]
[1758833974396,0.90552162,3896.3,3896.2,2.56660335]
[1758833974563,0.54862162,3896.3,3896.2,2.56660335]
[1758833975903,0.54862162,3896.3,3895.9,6.097]
[1758833976069,1.24622162,3896.2,3896.0,4.424]
[1758833976267,1.24622162,3896.1,3896.0,4.424]
[1758833976767,1.24622162,3896.1,3896.0,6.99073511]
[1758833976967,0.77752162,3896.1,3896.0,6.99073511]
[1758833978199,0.54862162,3896.1,3896.0,6.99073511]
[1758833978398,0.54862162,3896.1,3896.0,8.98983511]
[1758833979386,0.54862162,3896.1,3896.0,8.53473511]
[1758833980323,1.24622162,3896.1,3896.0,8.53373511]
[1758833980490,1.93685211,3896.1,3896.0,6.98973511]
[1758833980834,1.93685211,3896.1,3895.9,4.551]
[1758833981034,0.77752162,3896.0,3895.9,7.11780099]
[1758833981237,0.54862162,3896.0,3895.9,8.66180099]
[1758833981391,0.55024285,3896.0,3895.9,8.66180099]
[1758833981733,0.55024285,3896.0,3895.9,4.23880099]
[1758833981894,0.77914285,3896.0,3895.9,4.23880099]
[1758833982904,1.93564118,3896.0,3895.8,2.5668589]
[1758833983108,1.93586203,3895.9,3895.8,2.5668589]
[1758833983316,1.93586203,3895.9,3895.6,2.5669826]
[1758833983533,1.93604289,3895.8,3895.6,2.5669826]
[1758833983714,0.77914285,3895.7,3895.5,8.66205834]
[1758833984027,0.55024285,3895.6,3895.5,8.66205834]
[1758833985229,1.23844289,3895.6,3895.5,8.66205834]
[1758833986021,1.23844289,3895.6,3895.5,4.23905834]
[1758833987010,1.23844289,3895.6,3895.5,1.672]
[1758833987418,1.23844289,3895.6,3895.5,4.23906456]
[1758833987840,1.24784285,3895.6,3895.4,6.98911062]
[1758833988115,3.95542378,3895.5,3894.9,4.55]
[1758833988444,0.91872543,3895.0,3894.9,4.55]
[1758833988644,1.46896828,3895.0,3894.9,0.128]
[1758833988944,1.26034285,3895.0,3894.3,2.56783762]
[1758833989130,0.68896838,3894.7,3894.6,2.56765778]
[1758833989446,0.68896838,3894.8,3894.7,2.56759185]
[1758833989635,1.24012873,3894.8,3894.6,6.98964281]
[1758833989807,0.55116035,3894.7,3894.6,4.422]
[1758833990142,1.26126035,3894.7,3894.1,0.02]
[1758833990309,1.23988424,3894.6,3894.4,2.5677806]
[1758833990514,0.55116035,3894.5,3894.4,2.5677806]
[1758833991345,0.55116035,3894.5,3894.3,2.567845]
[1758833991548,0.55116035,3894.4,3894.3,2.567845]
[1758833991746,0.55116035,3894.4,3894.2,4.55]
[1758833991964,0.55116035,3894.3,3894.2,4.422]
[1758833992539,0.55116035,3894.3,3894.2,6.98992152]
[1758833992862,0.55116035,3894.3,3894.2,4.422]
[1758833993543,0.55116035,3894.3,3894.2,6.98992152]
[1758833993748,0.55116035,3894.3,3894.1,0.02]
[1758833993749,0.79916035,3894.3,3894.1,0.02]